fUST/lending_fUST_20251210
["ID","MTS","AMOUNT","RATE_DAILY","PERIOD"]
[398062855,1765347032127,-533.88981491,0.00017099,2]
[398062879,1765347032334,-168.38880561,0.00017099,2]
[398062881,1765347032344,-600.0,0.00017134,2]
[398062883,1765347032353,-2000.0,0.00017581,3]
[398062885,1765347032362,-2579.17784983,0.00017581,3]
[398062887,1765347032371,-1963.97442849,0.00017581,3]
[398062889,1765347032380,-6711.15888794,0.00017626,2]
[398062890,1765347032389,-553.64373807,0.00017647,2]
[398062892,1765347032399,-2000.0,0.00017725,3]
[398062893,1765347032408,-1200.0,0.00017726,7]
[398062894,1765347032417,-1015.9083389,0.00017991,2]
[398062895,1765347032426,-2000.0,0.00017999,2]
[398062897,1765347032435,-60249.88110477,0.00018,2]
[398062903,1765347038144,-956.7069,0.00017647,2]
[398062904,1765347038154,-191.3413,0.00017647,2]
[398062905,1765347038165,-828.5,0.00018,2]
[398062906,1765347038174,-984.18268,0.00018,2]
[398062907,1765347038185,-1074.99956033,0.00018,2]
[398062908,1765347038196,-2785.89918506,0.00018,2]
[398062909,1765347038208,-6146.25790288,0.00018,2]
[398062946,1765347040336,-661.98869106,0.00018,2]
[398062948,1765347040347,-675.61857851,0.00018,2]
[398063239,1765347043273,-203223.62268789,0.00018,2]
[398065596,1765348232672,-516.0,6.776e-05,2]
[398065597,1765348232681,-150.0,7.137e-05,2]
[398065598,1765348232691,-150.0,7.461e-05,2]
[398065599,1765348232701,-150.0,7.786e-05,2]
[398065600,1765348232711,-150.0,8.138e-05,2]
[398065601,1765348232722,-754.78032346,8.58e-05,2]
[398065602,1765348232766,-113.73580555,8.58e-05,2]
[398065603,1765348232775,-1252.39585544,0.0001,2]
[398065604,1765348232787,-914.38714063,0.0001,2]
[398065605,1765348232799,-1245.91881216,0.0001,2]
[398065606,1765348232831,-6587.29819177,0.0001,2]
[398065607,1765348232842,-660.0,0.00010198,2]
[398065608,1765348232852,-300.0,0.00010198,2]
[398065609,1765348232863,-1200.0,0.00010198,2]
[398065610,1765348232872,-300.0,0.00010199,2]
[398065611,1765348232881,-300.0,0.00010199,2]
[398065612,1765348232891,-300.0,0.00010199,2]
[398065613,1765348232900,-300.0,0.00010199,2]
[398065614,1765348232910,-300.0,0.00010199,2]
[398065615,1765348232920,-300.0,0.00010199,2]
[398065616,1765348232930,-300.0,0.00010199,2]
[398065617,1765348232939,-300.0,0.00010199,2]
[398065618,1765348232949,-300.0,0.00010199,2]
[398065619,1765348232961,-300.0,0.00010199,2]
[398065620,1765348232971,-300.0,0.00010199,2]
[398065621,1765348232980,-300.0,0.00010199,2]
[398065622,1765348232990,-300.0,0.00010199,2]
[398065623,1765348233002,-300.0,0.00010199,2]
[398065624,1765348233012,-300.0,0.00010199,2]
[398065625,1765348233023,-300.0,0.00011216,2]
[398065626,1765348233034,-868.51612901,0.00011509,2]
[398065627,1765348233043,-347.34343969,0.00012521,2]
[398065628,1765348233053,-500.0,0.00013273,2]
[398065629,1765348233063,-1500.0,0.00013699,2]
[398065630,1765348233073,-1000.0,0.00013821,2]
[398065631,1765348233083,-179.32762853,0.00014239,2]
[398065632,1765348233093,-416.91782195,0.00014368,2]
[398065633,1765348233103,-868.51612901,0.00014437,2]
[398065634,1765348233113,-240.6523195,0.00014882,2]
[398065635,1765348233123,-1000.0,0.00016356,2]
[398065636,1765348233134,-152.737,0.00017081,2]
[398065637,1765348233144,-533.88981491,0.00017099,2]
[398065638,1765348233154,-253.50593889,0.00017099,2]
[398065639,1765348233164,-250.0,0.00017099,2]
[398065640,1765348233175,-250.0,0.00017099,2]
[398065641,1765348233186,-250.0,0.00017099,2]
[398065642,1765348233196,-2230.315306,0.00017099,2]
[398065643,1765348233206,-250.0,0.00017099,2]
[398065644,1765348233216,-250.0,0.00017099,2]
[398065645,1765348233225,-250.0,0.00017099,2]
[398065646,1765348233235,-250.0,0.00017099,2]
[398065647,1765348233246,-868.51612901,0.00017366,2]
[398065648,1765348233255,-151.38284639,0.00017647,2]
[398065649,1765348233265,-207.46492305,0.00017647,2]
[398065650,1765348233274,-151.0,0.00017647,2]
[398065651,1765348233284,-151.0,0.00017647,2]
[398065652,1765348233293,-553.64373807,0.00017647,2]
[398065653,1765348233302,-2000.0,0.00017724,3]
[398065654,1765348233312,-1000.0,0.00017724,2]
[398065655,1765348233321,-438.26,0.00017724,2]
[398065656,1765348233331,-287.652,0.00017724,2]
[398065657,1765348233340,-500.0,0.00017725,2]
[398065658,1765348233350,-2000.0,0.00017725,3]
[398065659,1765348233360,-170.07695425,0.00017725,2]
[398065660,1765348233369,-1000.0,0.00017726,7]
[398065661,1765348233379,-151.0,0.00017784,2]
[398065662,1765348233388,-200.5973648,0.00017921,2]
[398065663,1765348233398,-2000.0,0.00017999,2]
[398065664,1765348233408,-119069.53822626,0.00018,2]
[398065673,1765348238433,-414.3421,0.00017647,2]
[398065674,1765348238443,-54582.42703205,0.00018,2]
[398065675,1765348238455,-4531.596537,0.00018,2]
[398065676,1765348238468,-314.83229562,0.00018,2]
[398065713,1765348240565,-1000.0,0.00018,2]
[398065809,1765348243389,-911.75,0.00018,2]
[398065818,1765348246227,-1060.13935512,0.00018,2]
[398065819,1765348246239,-10214.31451327,0.00018,2]
[398065820,1765348246250,-12120.0,0.00018,2]
[398065837,1765349432750,-150.0,6.785e-05,2]
[398065838,1765349432760,-516.0,6.785e-05,2]
[398065839,1765349432770,-150.0,6.871e-05,2]
[398065841,1765349432781,-46.84064076,7.129e-05,2]
[398065905,1765349438553,-103.15935924,7.129e-05,2]
[398065906,1765349438565,-290.85595124,8.198e-05,2]
[398065907,1765349438575,-178.70456391,8.871e-05,2]
[398065908,1765349438585,-290.85595124,0.000145,2]
[398065909,1765349438596,-347.34343969,0.00014822,2]
[398065910,1765349438606,-272.16998966,0.0001576,2]
[398065911,1765349438622,-803.8128241,0.0001576,2]
[398065912,1765349438632,-900.0,0.00016356,2]
[398065913,1765349438641,-1000.0,0.00016789,2]
[398065915,1765349438651,-1584.59329547,0.00017099,2]
[398065917,1765349438660,-1200.0,0.00017723,2]
[398065918,1765349438670,-2000.0,0.00017724,3]
[398065919,1765349438679,-300.0,0.00017724,2]
[398065920,1765349438689,-300.0,0.00017724,2]
[398065921,1765349438699,-300.0,0.00017724,2]
[398065922,1765349438708,-169.18523342,0.00017724,2]
[398065963,1765349440817,-130.81476658,0.00017724,2]
[398065965,1765349440826,-364.80523342,0.00017725,3]
[398066247,1765349443525,-415.0,0.00017521,2]
[398066249,1765349443534,-1635.19476658,0.00017725,3]
[398066251,1765349443544,-900.0,0.00017726,7]
[398066253,1765349443553,-305.83237913,0.00017729,2]
[398066255,1765349443562,-300.0,0.00017999,2]
[398066257,1765349443571,-2000.0,0.00017999,2]
[398066258,1765349443580,-1468.35740869,0.00018,2]
[398066484,1765349446430,-685.2987433,0.00018,2]
[398066486,1765349446443,-3192.979373,0.00018,2]
[398066488,1765349446452,-6004.73580319,0.00018,2]
[398066849,1765350631715,-150.0,6.779e-05,2]
[398066850,1765350631725,-516.0,6.779e-05,2]
[398066851,1765350631735,-150.0,7.136e-05,2]
[398066852,1765350631744,-150.0,7.46e-05,2]
[398066853,1765350631754,-88.42585719,7.785e-05,2]
[398066854,1765350631766,-61.57414281,7.785e-05,2]
[398066855,1765350631776,-150.0,8.109e-05,2]
[398066856,1765350631785,-1450.578347,0.00013699,2]
[398066857,1765350631795,-291.72851909,0.00014684,2]
[398066858,1765350631805,-347.34343969,0.0001511,2]
[398066859,1765350631815,-800.0,0.00016356,2]
[398066860,1765350631825,-2000.0,0.00017724,3]
[398066861,1765350631834,-1117.0,0.00017724,2]
[398066862,1765350631844,-2000.0,0.00017725,3]
[398066863,1765350631854,-800.0,0.00017726,7]
[398066864,1765350631863,-5872.26402693,0.0001788,2]
[398066865,1765350631874,-300.0,0.00017898,2]
[398066866,1765350631884,-1239.18653308,0.00017899,2]
[398066867,1765350631894,-533.88981491,0.00017972,2]
[398066868,1765350631903,-250.0,0.00017972,2]
[398066869,1765350631913,-250.0,0.00017972,2]
[398066870,1765350631922,-292.23017447,0.00017972,2]
[398066871,1765350631931,-154.32053342,0.00017982,2]
[398066872,1765350631941,-265.62470796,0.00017982,2]
[398066873,1765350631950,-1730.00072175,0.00017983,2]
[398066882,1765350637735,-181.83,0.0001797,2]
[398066883,1765350637746,-181.83,0.00017973,2]
[398066884,1765350637755,-181.83,0.00017973,2]
[398066885,1765350637765,-181.83,0.00017973,2]
[398066886,1765350637775,-274.3409194,0.00017979,2]
[398066887,1765350637785,-183.05808834,0.00017979,2]
[398066888,1765350637795,-500.0,0.00017979,2]
[398066889,1765350637805,-500.0,0.00017979,2]
[398066890,1765350637815,-500.0,0.00017979,2]
[398066891,1765350637824,-500.0,0.00017979,2]
[398066892,1765350637835,-500.0,0.00017979,2]
[398066893,1765350637844,-173.5890506,0.00017979,2]
[398066894,1765350637854,-500.0,0.00017979,2]
[398066895,1765350637863,-500.0,0.00017979,2]
[398066896,1765350637872,-500.0,0.00017979,2]
[398066897,1765350637882,-500.0,0.00017979,2]
[398066898,1765350637891,-500.0,0.00017979,2]
[398066899,1765350637900,-500.0,0.00017979,2]
[398066900,1765350637910,-500.0,0.00017979,2]
[398066901,1765350637919,-500.0,0.00017979,2]
[398066902,1765350637929,-500.0,0.00017979,2]
[398066903,1765350637938,-500.0,0.00017979,2]
[398066904,1765350637948,-500.0,0.00017979,2]
[398066905,1765350637957,-500.0,0.00017979,2]
[398066906,1765350637966,-500.0,0.00017979,2]
[398066907,1765350637975,-500.0,0.00017979,2]
[398066908,1765350637985,-500.0,0.00017979,2]
[398066909,1765350637995,-500.0,0.00017979,2]
[398066910,1765350638004,-500.0,0.00017979,2]
[398066911,1765350638014,-500.0,0.00017979,2]
[398066912,1765350638024,-500.0,0.00017979,2]
[398066913,1765350638033,-500.0,0.00017979,2]
[398066914,1765350638043,-500.0,0.00017979,2]
[398066915,1765350638052,-491.92427346,0.00017979,2]
[398066916,1765350638062,-500.0,0.00017979,2]
[398066917,1765350638072,-500.0,0.00017979,2]
[398066918,1765350638082,-500.0,0.00017979,2]
[398066919,1765350638091,-500.0,0.00017979,2]
[398066920,1765350638101,-500.0,0.00017979,2]
[398066921,1765350638111,-500.0,0.00017979,2]
[398066922,1765350638120,-500.0,0.00017979,2]
[398066923,1765350638130,-500.0,0.00017979,2]
[398066924,1765350638140,-500.0,0.00017979,2]
[398066925,1765350638150,-500.0,0.00017979,2]
[398066926,1765350638159,-500.0,0.00017979,2]
[398066927,1765350638169,-500.0,0.00017979,2]
[398066928,1765350638179,-500.0,0.00017979,2]
[398066929,1765350638188,-500.0,0.00017979,2]
[398066930,1765350638198,-500.0,0.00017979,2]
[398066931,1765350638207,-500.0,0.00017979,2]
[398066932,1765350638219,-500.0,0.00017979,2]
[398066933,1765350638230,-500.0,0.00017979,2]
[398066934,1765350638239,-500.0,0.00017979,2]
[398066935,1765350638249,-500.0,0.00017979,2]
[398066936,1765350638259,-500.0,0.00017979,2]
[398066937,1765350638269,-500.0,0.00017979,2]
[398066938,1765350638279,-500.0,0.00017979,2]
[398066939,1765350638289,-500.0,0.00017979,2]
[398066940,1765350638299,-500.0,0.00017979,2]
[398066941,1765350638310,-500.0,0.00017979,2]
[398066942,1765350638319,-500.0,0.00017979,2]
[398066943,1765350638328,-500.0,0.00017979,2]
[398066944,1765350638337,-500.0,0.00017979,2]
[398066945,1765350638347,-337.17888771,0.00017979,2]
[398066946,1765350638356,-500.0,0.00017979,2]
[398066947,1765350638366,-500.0,0.00017979,2]
[398066948,1765350638375,-500.0,0.00017979,2]
[398066949,1765350638384,-500.0,0.00017979,2]
[398066950,1765350638395,-500.0,0.00017979,2]
[398066951,1765350638404,-500.0,0.00017979,2]
[398066952,1765350638414,-500.0,0.00017979,2]
[398066953,1765350638424,-500.0,0.00017979,2]
[398066954,1765350638434,-500.0,0.00017979,2]
[398066955,1765350638443,-500.0,0.00017979,2]
[398066956,1765350638452,-500.0,0.00017979,2]
[398066957,1765350638462,-500.0,0.00017979,2]
[398066958,1765350638471,-37073.72333869,0.00017983,2]
[398066959,1765350638483,-1348.78,0.00017983,2]
[398066981,1765350639887,-3233.12680255,0.00017983,2]
[398067000,1765350642813,-5046.56037127,0.00017983,2]
[398067002,1765350646175,-20494.34494848,0.00017983,2]
[398067018,1765351831915,-520.0,7.094e-05,2]
[398067020,1765351831925,-150.0,7.209e-05,2]
[398067023,1765351831935,-150.0,7.553e-05,2]
[398067025,1765351831945,-150.0,7.896e-05,2]
[398067026,1765351831955,-150.0,8.239e-05,2]
[398067028,1765351831964,-150.0,8.515e-05,2]
[398067030,1765351831974,-204.28135078,8.546e-05,2]
[398067033,1765351831987,-439.84631063,8.546e-05,2]
[398067035,1765351831997,-644.12766141,0.00011579,2]
[398067037,1765351832008,-644.12766141,0.00014613,2]
[398067039,1765351832018,-164.03803312,0.0001481,2]
[398067041,1765351832028,-2000.0,0.000154,2]
[398067043,1765351832038,-347.34343969,0.00015455,2]
[398067045,1765351832048,-1000.0,0.00016232,2]
[398067047,1765351832057,-1200.0,0.00016355,2]
[398067049,1765351832070,-700.0,0.00016356,2]
[398067051,1765351832080,-300.0,0.00016984,2]
[398067053,1765351832090,-228.0,0.00016984,2]
[398067055,1765351832099,-300.0,0.00016984,2]
[398067057,1765351832111,-300.0,0.00016984,2]
[398067059,1765351832121,-1200.0,0.00016985,2]
[398067061,1765351832131,-197.13328505,0.0001708,2]
[398067063,1765351832141,-354.83991308,0.0001708,2]
[398067065,1765351832155,-533.88981491,0.00017099,2]
[398067067,1765351832166,-222.50726366,0.00017099,2]
[398067069,1765351832176,-157.094,0.00017207,2]
[398067071,1765351832185,-644.12766141,0.00017647,2]
[398067073,1765351832194,-553.64373807,0.00017647,2]
[398067096,1765351832396,-2000.0,0.00017724,3]
[398067098,1765351832410,-2000.0,0.00017725,3]
[398067100,1765351832420,-700.0,0.00017726,7]
[398067102,1765351832430,-2000.0,0.000179,2]
[398067104,1765351832439,-545.143,0.000179,2]
[398067106,1765351832449,-181.7143,0.000179,2]
[398067108,1765351832458,-2000.0,0.00017982,2]
[398067110,1765351832467,-151.629103,0.00017983,2]
[398067111,1765351832477,-151.0,0.00017983,2]
[398067112,1765351832486,-287598.05756477,0.0001799,2]
[398067135,1765351838092,-237.509,0.00017726,2]
[398067136,1765351838102,-29290.02598707,0.0001799,2]
[398067137,1765351838115,-44742.83825526,0.0001799,2]
[398067138,1765351838126,-6605.61827665,0.0001799,2]
[398067139,1765351838194,-1189.61098215,0.0001799,2]
[398067142,1765351838207,-180212.72186326,0.0001799,2]
[398067255,1765351841231,-31686.20508519,0.0001799,2]
[398067256,1765351841323,-41613.54921853,0.0001799,2]
[398067271,1765351843175,-8999.95216034,0.0001799,2]
[398067294,1765353032556,-150.0,7.17e-05,2]
[398067295,1765353032567,-283.18211007,7.17e-05,2]
[398067296,1765353032580,-237.81788993,7.17e-05,2]
[398067297,1765353032591,-347.34343969,0.00015905,2]
[398067298,1765353032602,-600.0,0.00016356,2]
[398067299,1765353032613,-2000.0,0.00017724,3]
[398067300,1765353032624,-2000.0,0.00017725,3]
[398067302,1765353032635,-600.0,0.00017726,7]
[398067304,1765353032646,-291.0,0.00017888,2]
[398067306,1765353032657,-300.0,0.00017888,2]
[398067308,1765353032667,-5138.23102359,0.00017889,2]
[398067310,1765353032678,-157.095,0.00017989,2]
[398067311,1765353032688,-2000.0,0.00017989,2]
[398067313,1765353032699,-199.21460654,0.00017989,2]
[398067314,1765353032709,-500.0,0.00017989,2]
[398067315,1765353032719,-500.0,0.00017989,2]
[398067316,1765353032729,-500.0,0.00017989,2]
[398067318,1765353032739,-219.19445409,0.00017989,2]
[398067320,1765353032750,-500.0,0.00017989,2]
[398067323,1765353032761,-500.0,0.00017989,2]
[398067325,1765353032771,-500.0,0.00017989,2]
[398067328,1765353032782,-500.0,0.00017989,2]
[398067332,1765353032795,-500.0,0.00017989,2]
[398067334,1765353032806,-500.0,0.00017989,2]
[398067336,1765353032817,-500.0,0.00017989,2]
[398067338,1765353032828,-500.0,0.00017989,2]
[398067340,1765353032839,-500.0,0.00017989,2]
[398067342,1765353032849,-500.0,0.00017989,2]
[398067344,1765353032860,-396.78537313,0.00017989,2]
[398067346,1765353032871,-534.76405866,0.00017989,2]
[398067348,1765353032881,-500.0,0.00017989,2]
[398067351,1765353032894,-500.0,0.00017989,2]
[398067352,1765353032905,-500.0,0.00017989,2]
[398067354,1765353032915,-500.0,0.00017989,2]
[398067356,1765353032925,-500.0,0.00017989,2]
[398067358,1765353032936,-500.0,0.00017989,2]
[398067359,1765353032947,-500.0,0.00017989,2]
[398067360,1765353032957,-500.0,0.00017989,2]
[398067361,1765353032968,-500.0,0.00017989,2]
[398067362,1765353032978,-500.0,0.00017989,2]
[398067363,1765353032989,-500.0,0.00017989,2]
[398067364,1765353032999,-500.0,0.00017989,2]
[398067365,1765353033009,-500.0,0.00017989,2]
[398067366,1765353033020,-500.0,0.00017989,2]
[398067367,1765353033030,-500.0,0.00017989,2]
[398067368,1765353033040,-500.0,0.00017989,2]
[398067369,1765353033051,-500.0,0.00017989,2]
[398067370,1765353033061,-500.0,0.00017989,2]
[398067371,1765353033071,-500.0,0.00017989,2]
[398067372,1765353033081,-500.0,0.00017989,2]
[398067373,1765353033091,-500.0,0.00017989,2]
[398067374,1765353033102,-500.0,0.00017989,2]
[398067375,1765353033113,-500.0,0.00017989,2]
[398067376,1765353033123,-500.0,0.00017989,2]
[398067377,1765353033133,-500.0,0.00017989,2]
[398067378,1765353033144,-500.0,0.00017989,2]
[398067379,1765353033155,-500.0,0.00017989,2]
[398067381,1765353033166,-500.0,0.00017989,2]
[398067382,1765353033177,-303.47640587,0.00017989,2]
[398067383,1765353033188,-500.0,0.00017989,2]
[398067384,1765353033198,-500.0,0.00017989,2]
[398067385,1765353033209,-500.0,0.00017989,2]
[398067386,1765353033219,-500.0,0.00017989,2]
[398067387,1765353033232,-500.0,0.00017989,2]
[398067388,1765353033242,-500.0,0.00017989,2]
[398067389,1765353033253,-500.0,0.00017989,2]
[398067390,1765353033263,-500.0,0.00017989,2]
[398067391,1765353033274,-500.0,0.00017989,2]
[398067392,1765353033284,-500.0,0.00017989,2]
[398067393,1765353033294,-500.0,0.00017989,2]
[398067394,1765353033303,-500.0,0.00017989,2]
[398067395,1765353033313,-185.93729557,0.00017989,2]
[398067396,1765353033324,-239649.67402642,0.0001799,2]
[398067398,1765353033341,-1667.7762393,0.0001799,2]
[398067405,1765353038445,-1765.24985403,0.0001799,2]
[398067406,1765353038490,-482.24165179,0.0001799,2]
[398067453,1765353040436,-596.9,0.0001799,2]
[398067455,1765353040448,-717.828,0.0001799,2]
[398067695,1765353044877,-199.71712018,0.00017989,2]
[398067696,1765353044890,-46806.21261244,0.0001799,2]
[398067697,1765353044903,-5669.61570614,0.0001799,2]
[398067698,1765353045021,-542.41,0.0001799,2]
[398067739,1765353046155,-454.52684659,0.0001799,2]
[398067741,1765353046168,-2533.04094035,0.0001799,2]
[398067744,1765353046180,-40851.48726796,0.0001799,2]
[398067811,1765353046986,-1438.72,0.0001799,2]
[398067812,1765353046998,-16140.72126267,0.0001799,2]
[398068662,1765353630764,2273.02279387,1.79e-05,12]
[398068664,1765354143846,2000.0,1.789e-05,3]
[398069147,1765354244335,-150.0,6.83e-05,2]
[398069149,1765354244346,-517.0,6.83e-05,2]
[398069151,1765354244356,-150.0,7.155e-05,2]
[398069153,1765354244367,-518.64630123,0.00013698,2]
[398069155,1765354244378,-1378.049429,0.00013699,2]
[398069157,1765354244388,-215.71086295,0.00015753,2]
[398069159,1765354244399,-600.0,0.00016356,2]
[398069161,1765354244409,-300.0,0.00016988,2]
[398069163,1765354244419,-500.0,0.00016989,2]
[398069165,1765354244429,-377.42059701,0.00016989,2]
[398069167,1765354244440,-398.44902981,0.00016989,2]
[398069397,1765354247087,-101.55097019,0.00016989,2]
[398069398,1765354247096,-500.0,0.00016989,2]
[398069399,1765354247107,-500.0,0.00016989,2]
[398069400,1765354247116,-401.39902981,0.00016989,2]
[398069760,1765355343302,2000.0,1.788e-05,3]
[398069795,1765355432559,-321.0,6.828e-05,2]
[398069857,1765355438646,-196.0,6.828e-05,2]
[398069859,1765355438657,-150.0,6.83e-05,2]
[398069860,1765355438666,-150.0,7.155e-05,2]
[398069862,1765355438676,-215.81866449,8.355e-05,2]
[398069863,1765355438687,-150.18620108,0.00013272,2]
[398069864,1765355438698,-263.42849911,0.00013273,2]
[398069865,1765355438707,-363.75976677,0.00015349,5]
[398069866,1765355438718,-179.9640072,0.00015678,2]
[398069867,1765355438729,-519.43437555,0.0001587,2]
[398069868,1765355438739,-283.0,0.00015999,2]
[398069869,1765355438749,-300.0,0.00015999,2]
[398069870,1765355438765,-792.0,0.00015999,2]
[398069871,1765355438775,-1748.29487563,0.00016,6]
[398069872,1765355438796,-5745.74079194,0.00016,6]
[398069873,1765355438807,-415.64417249,0.00016,6]
[398069874,1765355438824,-2114.21407203,0.00016,6]
[398069875,1765355438834,-1000.0,0.00016104,2]
[398069876,1765355438844,-500.0,0.00016356,2]
[398069877,1765355438853,-164.59278025,0.00016579,5]
[398069878,1765355438863,-233.72171815,0.0001658,2]
[398069918,1765355440877,-1278.69368714,0.0001658,2]
[398069920,1765355440888,-2000.0,0.00016988,2]
[398069922,1765355440899,-159.80384714,0.00016989,2]
[398069924,1765355440909,-500.0,0.00016989,2]
[398069926,1765355440918,-497.0437363,0.00016989,2]
[398069928,1765355440928,-521.20945973,0.00016989,2]
[398069930,1765355440937,-27719.89372867,0.0001699,2]
[398070212,1765355443737,-33104.56881,0.0001699,2]
[398070226,1765355443862,-780.75750266,0.0001699,2]
[398070228,1765355443874,-300.0,0.0001699,2]
[398070483,1765355446615,-4689.27203357,0.0001699,2]
[398070485,1765355446627,-1606.55725637,0.0001699,2]
[398070535,1765356543407,2000.0,1.787e-05,3]
[398070601,1765356631541,-874.63818407,0.00013699,2]
[398070608,1765356631595,-310.21679657,0.00013699,2]
[398070696,1765356637703,-124.29197636,0.00013699,2]
[398070697,1765356637713,-233.54836093,0.00014653,2]
[398070698,1765356637723,-420.38704968,0.00014653,2]
[398070699,1765356637733,-3.61393077,0.00014653,2]
[398070700,1765356637744,-743.74082421,0.00014653,2]
[398070701,1765356637753,-179.9460162,0.00015679,2]
[398070702,1765356637763,-157.0,0.000159,2]
[398070703,1765356637773,-35.76575223,0.000159,2]
[398070704,1765356637784,-121.23424777,0.000159,2]
[398070705,1765356637794,-559.59362836,0.00015999,3]
[398070706,1765356637809,-1440.40637164,0.00015999,3]
[398070707,1765356637822,-300.0,0.00016234,2]
[398070708,1765356637831,-303.91459015,0.00016235,2]
[398070709,1765356637840,-347.33096017,0.00016235,2]
[398070710,1765356637850,-184.81860692,0.00016235,2]
[398070711,1765356637859,-500.0,0.00016356,2]
[398070712,1765356637868,-174.52947112,0.00016578,3]
[398070713,1765356637880,-521.37153654,0.00016578,3]
[398070740,1765356642741,-1304.09899234,0.00016578,3]
[398070741,1765356642758,-339.0495744,0.00016652,2]
[398070742,1765356642774,-157.0,0.000169,3]
[398070743,1765356642793,-157.0,0.000169,3]
[398070744,1765356642810,-158.89547586,0.000169,3]
[398070745,1765356642828,-2000.0,0.00016989,2]
[398070746,1765356642845,-20902.31516349,0.0001699,2]
[398070747,1765356642864,-272.83182917,0.0001699,2]
[398070748,1765356642903,-297.49201882,0.0001699,2]
[398070749,1765356642926,-5910.00008699,0.0001699,2]
[398070750,1765356642946,-4381.53923045,0.0001699,2]
[398070768,1765356645946,-34.77233981,0.0001699,2]
[398070769,1765356645956,-998.92712939,0.0001709,2]
[398070770,1765356645967,-378.25410269,0.0001709,2]
[398070771,1765356645978,-1852.06120331,0.0001709,2]
[398070772,1765356645988,-157.095,0.0001726,2]
[398070773,1765356645997,-2064.03406466,0.00017581,30]
[398070774,1765356646007,-160.0,0.00017582,3]
[398070775,1765356646017,-12021.7014454,0.000177,2]
[398070776,1765356646028,-1437.1938843,0.000177,2]
[398070964,1765357831743,-517.0,6.811e-05,2]
[398070966,1765357831753,-150.0,7.173e-05,2]
[398070968,1765357831763,-150.0,7.514e-05,2]
[398070970,1765357831772,-150.0,7.743e-05,2]
[398070971,1765357831782,-150.0,8.065e-05,2]
[398070972,1765357831791,-145.26471507,8.428e-05,2]
[398070973,1765357831803,-4.73528493,8.428e-05,2]
[398070974,1765357831812,-150.0,8.768e-05,2]
[398070975,1765357831821,-278.44682514,0.00013699,2]
[398070976,1765357831832,-258.22366975,0.00013699,2]
[398070977,1765357831844,-463.32950511,0.00013699,2]
[398070978,1765357831853,-161.4025264,0.00013904,2]
[398070979,1765357831862,-1996.0687374,0.00013904,2]
[398070980,1765357831872,-267.8853847,0.00014438,2]
[398070981,1765357831881,-216.25030181,0.00014865,2]
[398070982,1765357831891,-171.69992392,0.00015333,2]
[398070983,1765357831900,-309.05986305,0.00015333,2]
[398070984,1765357831910,-548.89031678,0.00015333,2]
[398070985,1765357831920,-179.9460162,0.00015792,2]
[398070986,1765357831930,-300.0,0.00015988,2]
[398070987,1765357831940,-500.0,0.00015989,2]
[398070988,1765357831949,-285.94337549,0.00015989,2]
[398070989,1765357831959,-500.0,0.00015989,2]
[398070990,1765357831969,-500.0,0.00015989,2]
[398070991,1765357831978,-500.0,0.00015989,2]
[398070992,1765357831988,-500.0,0.00015989,2]
[398070993,1765357831997,-9389.55622422,0.0001599,2]
[398070994,1765357832013,-1333.37,0.0001599,2]
[398070995,1765357832024,-2327.03236663,0.0001599,2]
[398071003,1765357837915,-4612.84910141,0.0001599,2]
[398071004,1765357837927,-2170.85479308,0.0001599,2]
[398071005,1765357837972,-1896.94150928,0.0001599,2]
[398071338,1765357842946,-15015.42390756,0.0001599,2]
[398071615,1765357845782,-1801.77212347,0.0001599,2]
[398071621,1765357845835,-8035.74999984,0.0001599,2]